fUSD/lending_fUSD_20250606
["ID","MTS","AMOUNT","RATE_DAILY","PERIOD"]
[364672656,1749195052725,-480.0,0.00030164,7]
[364672657,1749195052735,-732.66,0.00030164,7]
[364672658,1749195052744,-480.0,0.00030164,7]
[364672659,1749195052754,-480.0,0.00030164,7]
[364672660,1749195052763,-2684.8,0.00030164,7]
[364672661,1749195052772,-480.0,0.00030164,7]
[364672662,1749195052782,-500.0,0.00030164,7]
[364672663,1749195052793,-500.0,0.00030164,7]
[364672664,1749195052803,-500.0,0.00030164,7]
[364672665,1749195052814,-500.0,0.00030164,7]
[364672666,1749195052823,-500.0,0.00030164,7]
[364672667,1749195052833,-500.0,0.00030164,7]
[364672668,1749195052843,-480.0,0.00030164,7]
[364672669,1749195052853,-500.0,0.00030164,7]
[364672670,1749195052863,-1191.278394,0.00030164,7]
[364672671,1749195052875,-500.0,0.00030164,7]
[364672672,1749195052886,-500.0,0.00030164,7]
[364672673,1749195052896,-1191.278394,0.00030164,7]
[364672674,1749195052906,-690.02,0.00030164,7]
[364672675,1749195052915,-749.27,0.00030164,7]
[364672676,1749195052925,-1631.58,0.00030164,7]
[364672677,1749195052934,-480.0,0.00030164,5]
[364672678,1749195052944,-480.0,0.00030164,7]
[364672679,1749195052953,-491.22145578,0.00030164,7]
[364672680,1749195052963,-621.64,0.00030164,7]
[364672681,1749195052973,-535.31,0.00030164,7]
[364672682,1749195052982,-1384.95,0.00030164,7]
[364672683,1749195052991,-480.0,0.00030164,7]
[364672684,1749195053001,-1562.21,0.00030164,7]
[364672685,1749195053010,-480.0,0.00030164,7]
[364672686,1749195053020,-480.0,0.00030164,7]
[364672687,1749195053030,-1191.278394,0.00030164,7]
[364672688,1749195053039,-480.0,0.00030164,7]
[364672689,1749195053048,-1191.278394,0.00030164,7]
[364672690,1749195053058,-18294.64,0.00030164,7]
[364672691,1749195053068,-480.81716786,0.00030164,7]
[364672692,1749195053077,-894.81,0.00030164,7]
[364672693,1749195053087,-427.09394536,0.00030164,7]
[364672694,1749195053096,-1115.23,0.00030164,7]
[364672695,1749195053105,-4575.79,0.00030164,7]
[364672696,1749195053115,-480.0,0.00030164,7]
[364672697,1749195053124,-480.0,0.00030164,7]
[364672698,1749195053136,-480.0,0.00030164,7]
[364672699,1749195053145,-480.0,0.00030164,7]
[364672700,1749195053155,-480.0,0.00030164,7]
[364672701,1749195053165,-483.25585743,0.00030164,7]
[364672702,1749195053174,-854.68,0.00030164,7]
[364672703,1749195053184,-480.0,0.00030164,7]
[364672704,1749195053193,-480.0,0.00030164,7]
[364672705,1749195053204,-480.0,0.00030164,7]
[364672706,1749195053214,-695.12,0.00030164,7]
[364672707,1749195053224,-650.15,0.00030164,7]
[364672708,1749195053233,-485.69882971,0.00030164,7]
[364672709,1749195053242,-151.0,0.00030164,7]
[364672710,1749195053251,-586.88,0.00030164,7]
[364672711,1749195053261,-480.0,0.00030164,7]
[364672712,1749195053271,-165.43364,0.00030164,7]
[364672713,1749195053280,-480.0,0.00030164,7]
[364672714,1749195053290,-6273.93,0.00030164,7]
[364672715,1749195053299,-812.2,0.00030164,7]
[364672716,1749195053308,-812.2,0.00030164,7]
[364672717,1749195053317,-812.2,0.00030164,7]
[364672718,1749195053326,-812.2,0.00030164,7]
[364672719,1749195053335,-812.2,0.00030164,7]
[364672720,1749195053344,-812.2,0.00030164,7]
[364672721,1749195053354,-784.29,0.00030164,7]
[364672722,1749195053363,-812.2,0.00030164,7]
[364672723,1749195053372,-480.0,0.00030164,7]
[364672724,1749195053382,-812.2,0.00030164,7]
[364672725,1749195053392,-812.2,0.00030164,7]
[364672726,1749195053401,-398.85324188,0.00030164,7]
[364672727,1749195053411,-812.2,0.00030164,7]
[364672728,1749195053420,-501.87,0.00030164,7]
[364672729,1749195053430,-480.0,0.00030164,7]
[364672730,1749195053439,-648.911723,0.00030164,7]
[364672731,1749195053449,-480.0,0.00030164,7]
[364672732,1749195053458,-648.911723,0.00030164,7]
[364672733,1749195053467,-156.547573,0.00030164,7]
[364672734,1749195053477,-480.0,0.00030164,7]
[364672735,1749195053487,-480.0,0.00030164,7]
[364672736,1749195053497,-480.0,0.00030164,7]
[364672737,1749195053506,-480.0,0.00030164,2]
[364672738,1749195053516,-1393.37,0.00030164,7]
[364672739,1749195053525,-480.0,0.00030164,7]
[364672740,1749195053535,-480.0,0.00030164,7]
[364672741,1749195053545,-648.911723,0.00030164,7]
[364672742,1749195053555,-480.0,0.00030164,3]
[364672743,1749195053565,-1018.89,0.00030164,7]
[364672744,1749195053574,-648.911723,0.00030164,7]
[364672745,1749195053584,-2222.98,0.00030164,7]
[364672746,1749195053593,-701.3,0.00030164,7]
[364672747,1749195053604,-497.08054199,0.00030164,7]
[364672748,1749195053613,-515.0579445,0.00030164,7]
[364672749,1749195053623,-480.0,0.00030164,7]
[364672750,1749195053632,-480.0,0.00030164,7]
[364672751,1749195053643,-480.0,0.00030164,7]
[364672752,1749195053653,-166.391649,0.00030164,7]
[364672753,1749195053662,-155.152848,0.00030164,7]
[364672754,1749195053672,-480.0,0.00030164,7]
[364672755,1749195053682,-166.391649,0.00030164,7]
[364672756,1749195053691,-500.0,0.00030164,7]
[364672757,1749195053701,-155.152848,0.00030164,7]
[364672758,1749195053710,-500.0,0.00030164,7]
[364672759,1749195053721,-169.76672196,0.00030164,7]
[364672760,1749195053730,-484.81077877,0.00030164,7]
[364672761,1749195053740,-838.48,0.00030164,7]
[364672762,1749195053749,-480.0,0.00030164,7]
[364672763,1749195053759,-480.0,0.00030164,7]
[364672764,1749195053769,-2372.89,0.00030164,7]
[364672765,1749195053778,-894.02,0.00030164,7]
[364672766,1749195053788,-480.0,0.00030164,7]
[364672767,1749195053802,-480.0,0.00030164,7]
[364672768,1749195053812,-550.96438493,0.00030164,7]
[364672769,1749195053822,-7451.07,0.00030164,7]
[364672770,1749195053832,-155.152848,0.00030164,7]
[364672771,1749195053843,-166.391649,0.00030164,7]
[364672772,1749195053853,-480.0,0.00030164,7]
[364672773,1749195053862,-155.152848,0.00030164,7]
[364672774,1749195053874,-2119.73,0.00030164,7]
[364672775,1749195053884,-166.391649,0.00030164,7]
[364672776,1749195053894,-480.0,0.00030164,7]
[364672777,1749195053903,-480.0,0.00030164,7]
[364672778,1749195053912,-1031.14,0.00030164,7]
[364672779,1749195053923,-480.0,0.00030164,7]
[364672780,1749195053932,-151.0,0.00030164,7]
[364672781,1749195053942,-480.0,0.00030164,7]
[364672782,1749195053952,-480.0,0.00030164,7]
[364672783,1749195053962,-953.26,0.00030164,7]
[364672784,1749195053971,-151.0,0.00030164,7]
[364672785,1749195053981,-545.98,0.00030164,7]
[364672786,1749195053990,-483.60662542,0.00030164,7]
[364672787,1749195053999,-981.45,0.00030164,7]
[364672788,1749195054008,-151.0,0.00030164,7]
[364672789,1749195054017,-665.71,0.00030164,7]
[364672790,1749195054027,-151.0,0.00030164,7]
[364672791,1749195054037,-480.0,0.00030164,7]
[364672792,1749195054046,-1003.28,0.00030164,7]
[364672793,1749195054056,-480.0,0.00030164,7]
[364672794,1749195054065,-502.03,0.00030164,7]
[364672795,1749195054075,-599.66,0.00030164,7]
[364672796,1749195054085,-483.39354451,0.00030164,7]
[364672797,1749195054095,-480.0,0.00030164,7]
[364672798,1749195054105,-3222.48,0.00030164,7]
[364672799,1749195054114,-406.43104568,0.00030164,7]
[364672800,1749195054124,-642.87,0.00030164,2]
[364672801,1749195054135,-482.48921709,0.00030164,7]
[364672802,1749195054145,-480.0,0.00030164,7]
[364672803,1749195054155,-895.35,0.00030164,7]
[364672804,1749195054164,-13954.29,0.00030164,7]
[364672805,1749195054174,-480.0,0.00030164,7]
[364672806,1749195054184,-821.63,0.00030164,7]
[364672807,1749195054194,-1239.07,0.00030164,7]
[364672808,1749195054203,-2507.72,0.00030164,7]
[364672809,1749195054213,-21187.12,0.00030164,7]
[364672810,1749195054223,-1029.37,0.00030164,7]
[364672811,1749195054232,-1188.22,0.00030164,7]
[364672812,1749195054242,-480.0,0.00030164,7]
[364672813,1749195054252,-151.0,0.00030164,7]
[364672814,1749195054262,-1023.07,0.00030164,2]
[364672815,1749195054271,-151.0,0.00030164,7]
[364672816,1749195054281,-1061.28,0.00030164,7]
[364672817,1749195054290,-480.0,0.00030164,7]
[364672818,1749195054300,-480.0,0.00030164,7]
[364672819,1749195054309,-4145.62,0.00030164,7]
[364672820,1749195054319,-480.0,0.00030164,7]
[364672821,1749195054328,-585.37,0.00030164,7]
[364672822,1749195054338,-480.0,0.00030164,7]
[364672823,1749195054347,-480.0,0.00030164,7]
[364672824,1749195054356,-151.0,0.00030164,7]
[364672825,1749195054366,-151.0,0.00030164,7]
[364672826,1749195054376,-483.32356621,0.00030164,7]
[364672827,1749195054386,-480.0,0.00030164,7]
[364672828,1749195054397,-225.386893,0.00030164,7]
[364672829,1749195054407,-225.386893,0.00030164,7]
[364672830,1749195054416,-495.38243071,0.00030164,7]
[364672831,1749195054426,-480.0,0.00030164,7]
[364672832,1749195054435,-480.0,0.00030164,7]
[364672833,1749195054445,-158.91544067,0.00030164,2]
[364672834,1749195054454,-867.72,0.00030164,7]
[364672835,1749195054464,-81999.01,0.00030164,7]
[364672836,1749195054474,-823.56,0.00030164,7]
[364672837,1749195054485,-818.4,0.00030164,7]
[364672838,1749195054504,-480.0,0.00030164,7]
[364672839,1749195054516,-480.0,0.00030164,7]
[364672840,1749195054526,-1414.72431,0.00030164,7]
[364672841,1749195054536,-2369.76,0.00030164,7]
[364672842,1749195054546,-1414.72431,0.00030164,7]
[364672843,1749195054557,-883.58,0.00030164,7]
[364672844,1749195054567,-480.0,0.00030164,7]
[364672845,1749195054577,-225.386893,0.00030164,7]
[364672846,1749195054588,-225.386893,0.00030164,7]
[364672847,1749195054598,-277.50472787,0.00030164,7]
[364672848,1749195054609,-480.0,0.00030164,7]
[364672849,1749195054619,-1357.61,0.00030164,7]
[364672850,1749195054628,-1145.19,0.00030164,7]
[364672851,1749195054639,-335.7994555,0.00030164,7]
[364672852,1749195054650,-480.0,0.00030164,7]
[364672853,1749195054660,-1168.31,0.00030164,7]
[364672854,1749195054670,-1414.72431,0.00030164,7]
[364672855,1749195054680,-1414.72431,0.00030164,7]
[364672856,1749195054690,-480.0,0.00030164,7]
[364672857,1749195054699,-480.0,0.00030164,7]
[364672858,1749195054709,-480.0,0.00030164,7]
[364672859,1749195054719,-480.0,0.00030164,7]
[364672860,1749195054729,-1706.77,0.00030164,7]
[364672861,1749195054739,-480.0,0.00030164,7]
[364672862,1749195054749,-480.0,0.00030164,7]
[364672863,1749195054758,-480.0,0.00030164,7]
[364672864,1749195054768,-480.0,0.00030164,7]
[364672865,1749195054778,-494.53481212,0.00030164,7]
[364672866,1749195054787,-67035.48098789,0.00030164,2]
[364672867,1749195054801,-333.0,0.00030167,2]
[364672868,1749195054810,-500.0,0.00030173,5]
[364672869,1749195054820,-500.0,0.00030173,5]
[364672870,1749195054830,-501.22771874,0.00030173,5]
[364672871,1749195054840,-501.50217081,0.00030173,5]
[364672872,1749195054850,-409.80880066,0.00030173,5]
[364672873,1749195054860,-500.0,0.00030173,5]
[364672874,1749195054870,-501.57390108,0.00030173,5]
[364672875,1749195054881,-500.0,0.00030173,5]
[364672876,1749195054891,-500.0,0.00030173,5]
[364672877,1749195054901,-500.61943238,0.00030173,5]
[364672878,1749195054911,-502.51453079,0.00030173,5]
[364672879,1749195054921,-501.2147058,0.00030173,5]
[364672880,1749195054930,-501.96261,0.00030173,5]
[364672881,1749195054941,-159.78811227,0.00030173,5]
[364672882,1749195054951,-190.5316047,0.00030173,5]
[364672883,1749195054961,-508.02161837,0.00030173,5]
[364672884,1749195054970,-501.13072775,0.00030173,5]
[364672885,1749195054980,-500.69387656,0.00030173,5]
[364672886,1749195054990,-504.06037281,0.00030173,5]
[364672887,1749195055001,-302.57153467,0.00030173,5]
[364672888,1749195055011,-500.73269079,0.00030173,5]
[364672889,1749195055020,-151.0,0.00030194,7]
[364672890,1749195055029,-151.0,0.00030194,7]
[364672891,1749195055039,-151.0,0.00030194,7]
[364672892,1749195055049,-161.0,0.00030194,7]
[364672893,1749195055059,-151.0,0.00030194,7]
[364672894,1749195055069,-253.2642748,0.00030194,7]
[364672895,1749195055079,-151.0,0.00030194,7]
[364672896,1749195055089,-152.0,0.00030194,7]
[364672897,1749195055099,-151.0,0.00030194,7]
[364672898,1749195055109,-152.0,0.00030194,7]
[364672899,1749195055118,-151.0,0.00030194,7]
[364672900,1749195055129,-152.0,0.00030194,7]
[364672901,1749195055138,-292.95177789,0.00030194,7]
[364672902,1749195055149,-152.0,0.00030194,7]
[364672903,1749195055159,-152.0,0.00030194,7]
[364672904,1749195055169,-152.0,0.00030194,7]
[364672905,1749195055179,-152.0,0.00030194,7]
[364672906,1749195055188,-1743.79,0.000302,2]
[364672907,1749195055198,-557.0,0.00030214,2]
[364672908,1749195055209,-926.0,0.00030214,2]
[364672909,1749195055219,-1999.0,0.00030214,2]
[364672910,1749195055229,-1274.0,0.00030214,2]
[364672911,1749195055239,-589.0,0.00030214,2]
[364672912,1749195055250,-1254.0,0.00030214,2]
[364672913,1749195055259,-150.0,0.00030214,2]
[364672914,1749195055269,-1158.0,0.00030214,2]
[364672915,1749195055279,-1191.278394,0.00030214,7]
[364672916,1749195055289,-1191.278394,0.00030214,7]
[364672917,1749195055298,-166.391649,0.00030214,7]
[364672918,1749195055308,-166.391649,0.00030214,7]
[364672919,1749195055318,-155.017,0.00030214,2]
[364672920,1749195055328,-151.0,0.00030214,7]
[364672921,1749195055338,-160.506943,0.00030214,7]
[364672922,1749195055348,-944.0,0.00030214,2]
[364672923,1749195055358,-4081.0,0.00030214,2]
[364672924,1749195055368,-151.0,0.00030214,7]
[364672925,1749195055378,-1164.445,0.00030214,2]
[364672926,1749195055388,-151.0,0.00030214,7]
[364672927,1749195055398,-155.0,0.00030214,2]
[364672928,1749195055408,-7017.0,0.00030214,2]
[364672929,1749195055418,-150.0,0.0003022,2]
[364672930,1749195055428,-1139.17087811,0.00030224,2]
[364672931,1749195055438,-150.0,0.00030236,2]
[364672932,1749195055449,-150.0,0.00030237,2]
[364672933,1749195055459,-150.0,0.00030238,2]
[364672934,1749195055468,-150.0,0.0003024,2]
[364672935,1749195055478,-150.0,0.00030253,2]
[364672936,1749195055490,-151.0,0.00030265,7]
[364672937,1749195055500,-151.0,0.00030265,7]
[364672938,1749195055510,-151.0,0.00030265,7]
[364672939,1749195055520,-648.911723,0.00030265,7]
[364672940,1749195055531,-648.911723,0.00030265,7]
[364672941,1749195055541,-155.152848,0.00030265,7]
[364672942,1749195055551,-155.152848,0.00030265,7]
[364672943,1749195055561,-1414.72431,0.00030265,7]
[364672944,1749195055571,-1414.72431,0.00030265,7]
[364672945,1749195055581,-150.0,0.00030268,2]
[364672946,1749195055591,-150.0,0.0003027,2]
[364672947,1749195055601,-150.0,0.00030276,2]
[364672948,1749195055611,-150.0,0.00030276,2]
[364672949,1749195055621,-169.1473659,0.00030278,2]
[364672950,1749195055631,-150.0,0.0003028,2]
[364672951,1749195055641,-174.97167064,0.00030289,2]
[364672952,1749195055652,-150.0,0.00030294,2]
[364672953,1749195055662,-4308.68,0.000303,2]
[364672954,1749195055672,-4308.68,0.000303,2]
[364672955,1749195055682,-200.0,0.000303,14]
[364672956,1749195055692,-200.0,0.000303,14]
[364672957,1749195055702,-200.0,0.000303,14]
[364672958,1749195055712,-200.0,0.000303,14]
[364672959,1749195055721,-200.0,0.000303,14]
[364672960,1749195055731,-200.0,0.000303,14]
[364672961,1749195055740,-200.0,0.000303,14]
[364672962,1749195055750,-200.0,0.000303,14]
[364672963,1749195055760,-200.0,0.000303,14]
[364672964,1749195055770,-200.0,0.000303,14]
[364672965,1749195055779,-200.0,0.000303,14]
[364672966,1749195055791,-200.0,0.000303,14]
[364672967,1749195055802,-200.0,0.000303,14]
[364672968,1749195055811,-200.0,0.000303,14]
[364672969,1749195055821,-200.0,0.000303,14]
[364672970,1749195055831,-200.0,0.000303,14]
[364672971,1749195055841,-200.0,0.000303,14]
[364672972,1749195055851,-200.0,0.000303,14]
[364672973,1749195055861,-200.0,0.000303,14]
[364672974,1749195055873,-200.0,0.000303,14]
[364672975,1749195055883,-200.0,0.000303,14]
[364672976,1749195055894,-159.0,0.000303,22]
[364672977,1749195055904,-200.0,0.000303,14]
[364672978,1749195055914,-200.0,0.000303,14]
[364672979,1749195055924,-200.0,0.000303,14]
[364672980,1749195055934,-200.0,0.000303,14]
[364672981,1749195055943,-200.0,0.000303,14]
[364672982,1749195055953,-200.0,0.000303,14]
[364672983,1749195055963,-200.0,0.000303,14]
[364672984,1749195055973,-200.0,0.000303,14]
[364672985,1749195055983,-200.0,0.000303,14]
[364672986,1749195055993,-295.0,0.000303,14]
[364672987,1749195056004,-713.0,0.000303,2]
[364672988,1749195056013,-1500.0,0.000303,3]
[364672989,1749195056023,-200.516106,0.000303,3]
[364672990,1749195056033,-13980.21,0.000303,2]
[364672991,1749195056043,-13980.21,0.000303,2]
[364672992,1749195056053,-1000.0,0.00030301,2]
[364672993,1749195056062,-150.0,0.00030302,2]
[364672994,1749195056072,-150.0,0.00030309,2]
[364672995,1749195056082,-150.0,0.00030313,2]
[364672996,1749195056091,-150.0,0.00030317,2]
[364672997,1749195056101,-150.0,0.00030326,2]
[364672998,1749195056112,-9794.95,0.00030326,7]
[364672999,1749195056122,-500.0,0.00030327,2]
[364673000,1749195056132,-500.0,0.00030327,2]
[364673001,1749195056142,-500.0,0.00030327,2]
[364673002,1749195056152,-514.22,0.00030327,7]
[364673003,1749195056162,-514.22,0.00030327,7]
[364673004,1749195056172,-514.22,0.00030327,7]
[364673005,1749195056182,-500.0,0.00030327,7]
[364673006,1749195056192,-500.0,0.00030327,7]
[364673007,1749195056202,-500.0,0.00030327,7]
[364673008,1749195056212,-763.56,0.00030327,7]
[364673009,1749195056222,-763.56,0.00030327,7]
[364673010,1749195056232,-763.56,0.00030327,7]
[364673011,1749195056243,-500.0,0.00030327,7]
[364673012,1749195056253,-500.0,0.00030327,7]
[364673013,1749195056262,-283.54900581,0.00030327,7]
[364673014,1749195056272,-151.0,0.00030327,7]
[364673015,1749195056282,-151.0,0.00030327,7]
[364673016,1749195056292,-151.0,0.00030327,7]
[364673017,1749195056302,-254.24412079,0.00030327,7]
[364673018,1749195056312,-812.2,0.00030327,7]
[364673019,1749195056322,-812.2,0.00030327,7]
[364673020,1749195056332,-812.2,0.00030327,7]
[364673021,1749195056342,-9794.95,0.00030327,7]
[364673022,1749195056352,-9794.95,0.00030327,7]
[364673023,1749195056362,-9794.95,0.00030327,7]
[364673024,1749195056373,-500.0,0.00030327,7]
[364673025,1749195056384,-647.20709056,0.00030327,7]
[364673026,1749195056395,-225.386893,0.00030327,7]
[364673027,1749195056404,-225.386893,0.00030327,7]
[364673028,1749195056415,-151.0,0.00030328,7]
[364673029,1749195056425,-151.0,0.00030328,7]
[364673030,1749195056435,-151.0,0.00030328,7]
[364673031,1749195056445,-153.09525,0.00030328,7]
[364673032,1749195056455,-151.0,0.00030328,7]
[364673033,1749195056465,-151.0,0.00030328,7]
[364673034,1749195056476,-151.0,0.00030328,7]
[364673035,1749195056489,-151.0,0.00030328,7]
[364673036,1749195056725,-151.0,0.00030328,7]
[364673037,1749195056743,-151.0,0.00030328,7]
[364673038,1749195056753,-151.0,0.00030328,7]
[364673039,1749195056763,-151.0,0.00030328,7]
[364673040,1749195056772,-151.0,0.00030328,7]
[364673041,1749195056784,-172.42864,0.00030328,7]
[364673042,1749195056795,-151.0,0.00030328,7]
[364673043,1749195056805,-151.0,0.00030328,7]
[364673044,1749195056814,-151.0,0.00030328,7]
[364673045,1749195056824,-151.0,0.00030328,7]
[364673046,1749195056834,-151.0,0.00030328,7]
[364673047,1749195056844,-151.0,0.00030328,7]
[364673048,1749195056853,-151.0,0.00030328,7]
[364673049,1749195056862,-151.0,0.00030328,7]
[364673050,1749195056872,-162.41710518,0.00030328,7]
[364673051,1749195056881,-151.0,0.00030328,7]
[364673052,1749195056891,-151.0,0.00030328,7]
[364673053,1749195056901,-151.0,0.00030328,7]
[364673054,1749195056911,-151.0,0.00030328,7]
[364673055,1749195056920,-151.0,0.00030328,7]
[364673056,1749195056930,-151.0,0.00030328,7]
[364673057,1749195056939,-151.0,0.00030328,7]
[364673058,1749195056949,-151.0,0.00030328,7]
[364673059,1749195056958,-480.0,0.00030328,7]
[364673060,1749195056968,-480.0,0.00030328,7]
[364673061,1749195056978,-480.0,0.00030328,7]
[364673062,1749195056987,-478.14852214,0.00030328,7]
[364673063,1749195056997,-151.0,0.00030328,7]
[364673064,1749195057007,-151.0,0.00030328,7]
[364673065,1749195057016,-480.0,0.00030328,7]
[364673066,1749195057026,-480.0,0.00030328,7]
[364673067,1749195057035,-480.0,0.00030328,7]
[364673068,1749195057045,-151.0,0.00030328,7]
[364673069,1749195057054,-151.0,0.00030328,7]
[364673070,1749195057064,-151.0,0.00030328,7]
[364673071,1749195057073,-250.0,0.00030328,7]
[364673072,1749195057082,-151.0,0.00030328,7]
[364673073,1749195057092,-480.0,0.00030328,7]
[364673074,1749195057102,-494.72527346,0.00030328,7]
[364673075,1749195057111,-261.24435137,0.00030328,7]
[364673076,1749195057121,-480.0,0.00030328,7]
[364673077,1749195057130,-480.0,0.00030328,7]
[364673078,1749195057139,-480.0,0.00030328,7]
[364673079,1749195057148,-151.0,0.00030328,7]
[364673080,1749195057157,-151.0,0.00030328,7]
[364673081,1749195057167,-480.0,0.00030328,7]
[364673082,1749195057176,-480.0,0.00030328,7]
[364673083,1749195057186,-480.0,0.00030328,7]
[364673084,1749195057195,-639.09,0.00030328,7]
[364673085,1749195057205,-480.0,0.00030328,7]
[364673086,1749195057214,-490.71684663,0.00030328,7]
[364673087,1749195057223,-219.86001804,0.00030328,7]
[364673088,1749195057233,-480.0,0.00030328,7]
[364673089,1749195057242,-480.0,0.00030328,7]
[364673090,1749195057251,-480.0,0.00030328,7]
[364673091,1749195057260,-480.0,0.00030328,7]
[364673092,1749195057270,-151.0,0.00030328,7]
[364673093,1749195057279,-151.0,0.00030328,7]
[364673094,1749195057288,-480.0,0.00030328,7]
[364673095,1749195057297,-489.53454566,0.00030328,7]
[364673096,1749195057307,-480.0,0.00030328,7]
[364673097,1749195057316,-480.0,0.00030328,7]
[364673098,1749195057325,-151.0,0.00030328,7]
[364673099,1749195057334,-449.63555096,0.00030328,7]
[364673100,1749195057343,-467.95900719,0.00030328,7]
[364673101,1749195057352,-480.0,0.00030328,7]
[364673102,1749195057362,-480.0,0.00030328,7]
[364673103,1749195057371,-480.0,0.00030328,7]
[364673104,1749195057380,-480.0,0.00030328,7]
[364673105,1749195057390,-480.0,0.00030328,7]
[364673106,1749195057399,-265.93891028,0.00030328,7]
[364673107,1749195057409,-480.0,0.00030328,7]
[364673108,1749195057419,-480.0,0.00030328,7]
[364673109,1749195057428,-504.79863452,0.00030328,7]
[364673110,1749195057438,-480.0,0.00030328,7]
[364673111,1749195057448,-500.07556787,0.00030328,7]
[364673112,1749195057457,-480.0,0.00030328,7]
[364673113,1749195057467,-480.0,0.00030328,7]
[364673114,1749195057477,-480.0,0.00030328,7]
[364673115,1749195057487,-421.134473,0.00030328,7]
[364673116,1749195057496,-421.134473,0.00030328,7]
[364673117,1749195057506,-421.134473,0.00030328,7]
[364673118,1749195057516,-421.134473,0.00030328,7]
[364673119,1749195057525,-431.52592886,0.00030328,7]
[364673120,1749195057535,-151.0,0.00030328,7]
[364673121,1749195057545,-190.915516,0.00030328,7]
[364673122,1749195057555,-502.45176201,0.00030328,7]
[364673123,1749195057565,-480.0,0.00030328,7]
[364673124,1749195057575,-151.0,0.00030328,7]
[364673125,1749195057584,-487.39376209,0.00030328,7]
[364673126,1749195057594,-480.0,0.00030328,7]
[364673127,1749195057603,-535.07,0.00030328,7]
[364673128,1749195057613,-480.0,0.00030328,7]
[364673129,1749195057622,-480.0,0.00030328,7]
[364673130,1749195057632,-480.0,0.00030328,7]
[364673131,1749195057642,-151.0,0.00030328,7]
[364673132,1749195057651,-232.6460603,0.00030328,7]
[364673133,1749195057660,-335.222175,0.00030328,7]
[364673134,1749195057670,-335.222175,0.00030328,7]
[364673135,1749195057680,-335.222175,0.00030328,7]
[364673136,1749195057690,-491.28247141,0.00030328,7]
[364673137,1749195057699,-335.222175,0.00030328,7]
[364673138,1749195057708,-480.0,0.00030328,7]
[364673139,1749195057717,-480.0,0.00030328,7]
[364673140,1749195057726,-480.0,0.00030328,7]
[364673141,1749195057735,-498.30516853,0.00030328,7]
[364673142,1749195057745,-480.0,0.00030328,7]
[364673143,1749195057754,-492.25807826,0.00030328,7]
[364673144,1749195057763,-489.29167731,0.00030328,7]
[364673145,1749195057773,-480.0,0.00030328,7]
[364673146,1749195057783,-480.0,0.00030328,7]
[364673147,1749195057792,-151.0,0.00030328,7]
[364673148,1749195057805,-151.0,0.00030328,7]
[364673149,1749195057814,-480.0,0.00030328,7]
[364673150,1749195057823,-191.964947,0.00030328,7]
[364673151,1749195057832,-191.964947,0.00030328,7]
[364673152,1749195057842,-607.32,0.00030328,7]
[364673153,1749195057851,-191.964947,0.00030328,7]
[364673154,1749195057860,-191.964947,0.00030328,7]
[364673155,1749195057869,-480.0,0.00030328,7]